[Event "*** Titled Tuesday Blitz"]
[Site "Chess.com"]
[Date "2018.11.06"]
[Round "4"]
[White "pultineviciuspaulius"]
[Black "Paralinch"]
[Result "0-1"]
[WhiteElo "2574"]
[BlackElo "2833"]
[TimeControl "180+2"]
[EndTime "13:54:01 PST"]
[Termination "Paralinch won by resignation"]

1. e4 {[%clk 0:03:01.9]} 1... c6 {[%clk 0:03:01]} 2. d4 {[%clk 0:03:01.4]} 2...
d5 {[%clk 0:03:02.9]} 3. e5 {[%clk 0:03:02.8]} 3... Bf5 {[%clk 0:03:03.8]} 4.
Nc3 {[%clk 0:03:03.5]} 4... e6 {[%clk 0:03:05]} 5. h4 {[%clk 0:03:03.4]} 5... h5
{[%clk 0:03:03.7]} 6. Be2 {[%clk 0:03:04.8]} 6... c5 {[%clk 0:03:04.4]} 7. Nf3
{[%clk 0:03:03.7]} 7... Nc6 {[%clk 0:03:05.1]} 8. dxc5 {[%clk 0:03:03.3]} 8...
Bxc5 {[%clk 0:03:05.8]} 9. a3 {[%clk 0:03:00.7]} 9... Nge7 {[%clk 0:03:05.6]}
10. b4 {[%clk 0:03:00.3]} 10... Bb6 {[%clk 0:03:06.2]} 11. Bg5 {[%clk
0:03:00.2]} 11... a6 {[%clk 0:02:58.4]} 12. O-O {[%clk 0:02:34.9]} 12... Rc8
{[%clk 0:02:51.6]} 13. b5 {[%clk 0:02:27]} 13... Na5 {[%clk 0:02:52]} 14. Na4
{[%clk 0:02:26.5]} 14... Bxc2 {[%clk 0:02:50.8]} 15. Qd2 {[%clk 0:02:13.3]}
15... Bxa4 {[%clk 0:02:50.7]} 16. bxa6 {[%clk 0:02:13.2]} 16... bxa6 {[%clk
0:02:19.4]} 17. Bxa6 {[%clk 0:02:14.2]} 17... Ra8 {[%clk 0:02:20.4]} 18. Qb4
{[%clk 0:02:14.4]} 18... Rxa6 {[%clk 0:02:18.5]} 19. Qxa4+ {[%clk 0:02:15.5]}
19... Qd7 {[%clk 0:02:19.8]} 20. Qf4 {[%clk 0:02:11.4]} 20... Nf5 {[%clk
0:02:17.8]} 21. Rab1 {[%clk 0:02:09.7]} 21... O-O {[%clk 0:02:16.4]} 22. g4
{[%clk 0:02:09.1]} 22... hxg4 {[%clk 0:02:15.3]} 23. Qxg4 {[%clk 0:02:11]} 23...
Bd8 {[%clk 0:01:58.1]} 24. Kg2 {[%clk 0:02:09]} 24... Nc4 {[%clk 0:01:55.8]} 25.
Rfe1 {[%clk 0:01:53.6]} 25... Rxa3 {[%clk 0:01:49.6]} 26. Rbd1 {[%clk
0:01:53.7]} 26... Rxf3 {[%clk 0:01:46.3]} 27. Kxf3 {[%clk 0:01:48.9]} 27... f6
{[%clk 0:01:42.1]} 28. exf6 {[%clk 0:01:39.3]} 28... Bxf6 {[%clk 0:01:43.1]} 29.
Kg2 {[%clk 0:01:28.2]} 29... Qf7 {[%clk 0:01:39.4]} 30. h5 {[%clk 0:01:13.6]}
30... Bxg5 {[%clk 0:01:20.1]} 31. Qxg5 {[%clk 0:01:15.5]} 31... Qf6 {[%clk
0:01:19]} 32. Qxf6 {[%clk 0:01:10]} 32... Rxf6 {[%clk 0:01:20.9]} 33. Ra1 {[%clk
0:01:11.3]} 33... Nd2 {[%clk 0:01:12.2]} 34. Ra8+ {[%clk 0:01:11.1]} 34... Kh7
{[%clk 0:01:13]} 35. Re8 {[%clk 0:01:11.5]} 35... Ne4 {[%clk 0:01:13.1]} 36. f3
{[%clk 0:01:11.6]} 36... Nh4+ {[%clk 0:01:14]} 37. Kh3 {[%clk 0:01:09.8]} 37...
Nxf3 {[%clk 0:01:13]} 38. Re3 {[%clk 0:01:11.3]} 38... Nd4 {[%clk 0:00:59.3]}
39. Ra3 {[%clk 0:01:08.6]} 39... Kh6 {[%clk 0:00:56.2]} 40. Kg4 {[%clk
0:01:04.5]} 40... Nf2+ {[%clk 0:00:56.9]} 41. Kg3 {[%clk 0:01:01.4]} 41... Kxh5
{[%clk 0:00:52.5]} 42. Ra4 {[%clk 0:00:55.6]} 42... Ne4+ {[%clk 0:00:53.4]} 43.
Kg2 {[%clk 0:00:54.1]} 43... Nf5 {[%clk 0:00:53.7]} 44. Kh3 {[%clk 0:00:49.9]}
44... Ng5+ {[%clk 0:00:52.3]} 45. Kh2 {[%clk 0:00:50]} 45... Nh6 {[%clk
0:00:50.5]} 46. Kg2 {[%clk 0:00:47]} 46... Ne4 {[%clk 0:00:49.7]} 47. Re7 {[%clk
0:00:41.7]} 47... Rf2+ {[%clk 0:00:46.1]} 48. Kg1 {[%clk 0:00:41.9]} 48... Rf6
{[%clk 0:00:41.4]} 49. Rxg7 {[%clk 0:00:42.2]} 49... Rg6+ {[%clk 0:00:42.7]} 50.
Rxg6 {[%clk 0:00:43.5]} 50... Kxg6 {[%clk 0:00:44.6]} 51. Ra6 {[%clk 0:00:44.9]}
51... Kf5 {[%clk 0:00:45.9]} 52. Ra8 {[%clk 0:00:45.6]} 52... Ng4 {[%clk
0:00:45.4]} 53. Rf8+ {[%clk 0:00:46.5]} 53... Ngf6 {[%clk 0:00:46.7]} 54. Rg8
{[%clk 0:00:48.1]} 54... e5 {[%clk 0:00:47.6]} 55. Rd8 {[%clk 0:00:48.4]} 55...
d4 {[%clk 0:00:48.4]} 56. Kf1 {[%clk 0:00:49.7]} 56... Kf4 {[%clk 0:00:48.1]}
57. Ke1 {[%clk 0:00:50.4]} 57... Ke3 {[%clk 0:00:48.4]} 58. Rh8 {[%clk
0:00:50.2]} 58... Ng3 {[%clk 0:00:47.3]} 59. Rh3 {[%clk 0:00:50.9]} 59... Ne4
{[%clk 0:00:48.4]} 60. Rh2 {[%clk 0:00:50]} 60... d3 {[%clk 0:00:48.2]} 61. Ra2
{[%clk 0:00:22.5]} 61... d2+ {[%clk 0:00:46.9]} 62. Rxd2 {[%clk 0:00:23.8]}
62... Nxd2 {[%clk 0:00:46.9]} 0-1

[Event "*** Titled Tuesday Blitz"]
[Site "Chess.com"]
[Date "2018.11.06"]
[Round "4"]
[White "IvanRadivojevic"]
[Black "JSMastropiero"]
[Result "1/2-1/2"]
[WhiteElo "2403"]
[BlackElo "2295"]
[TimeControl "180+2"]
[EndTime "13:54:11 PST"]
[Termination "Game drawn by repetition"]

1. e4 {[%clk 0:02:58]} 1... c5 {[%clk 0:02:59.7]} 2. Nc3 {[%clk 0:02:57.8]} 2...
g6 {[%clk 0:02:59.7]} 3. f4 {[%clk 0:02:58.5]} 3... Nc6 {[%clk 0:02:59.7]} 4.
Nf3 {[%clk 0:02:59.8]} 4... Bg7 {[%clk 0:02:58.8]} 5. Bb5 {[%clk 0:03:00.8]}
5... Nd4 {[%clk 0:02:58.5]} 6. O-O {[%clk 0:03:02.2]} 6... Nxb5 {[%clk
0:02:58.3]} 7. Nxb5 {[%clk 0:03:04.1]} 7... d5 {[%clk 0:02:58.4]} 8. exd5 {[%clk
0:03:06]} 8... a6 {[%clk 0:02:58.8]} 9. Nc3 {[%clk 0:03:07.6]} 9... Nf6 {[%clk
0:03:00.1]} 10. d4 {[%clk 0:03:07.7]} 10... c4 {[%clk 0:02:59.9]} 11. Qe2 {[%clk
0:03:04.5]} 11... b5 {[%clk 0:02:59.8]} 12. a4 {[%clk 0:02:42.8]} 12... Rb8
{[%clk 0:02:57.4]} 13. axb5 {[%clk 0:02:42.6]} 13... axb5 {[%clk 0:02:58.7]} 14.
Ne5 {[%clk 0:02:39.9]} 14... Bb7 {[%clk 0:02:51.5]} 15. Nxb5 {[%clk 0:02:28.9]}
15... Bxd5 {[%clk 0:02:43.5]} 16. Nc3 {[%clk 0:02:24.5]} 16... O-O {[%clk
0:02:42.1]} 17. Nxd5 {[%clk 0:02:12.3]} 17... Qxd5 {[%clk 0:02:44]} 18. Qxc4
{[%clk 0:02:13]} 18... Qb7 {[%clk 0:02:22.1]} 19. c3 {[%clk 0:02:08.9]} 19...
Nd5 {[%clk 0:02:17.5]} 20. Qc6 {[%clk 0:02:03.4]} 20... Bxe5 {[%clk 0:02:10.4]}
21. Qxb7 {[%clk 0:02:04.4]} 21... Bxd4+ {[%clk 0:02:11.5]} 22. cxd4 {[%clk
0:02:06.3]} 22... Rxb7 {[%clk 0:02:12.9]} 23. f5 {[%clk 0:02:05.7]} 23... Rc8
{[%clk 0:02:06.4]} 24. Ra5 {[%clk 0:02:04.7]} 24... Nf6 {[%clk 0:01:59.6]} 25.
Re1 {[%clk 0:01:58.4]} 25... Kg7 {[%clk 0:01:49.2]} 26. h3 {[%clk 0:01:55.4]}
26... Rc2 {[%clk 0:01:47.9]} 27. Rae5 {[%clk 0:01:47.6]} 27... Rd7 {[%clk
0:01:46.4]} 28. R5e2 {[%clk 0:01:27.8]} 28... Rxe2 {[%clk 0:01:18.4]} 29. Rxe2
{[%clk 0:01:29.7]} 29... Rxd4 {[%clk 0:01:19.7]} 30. Bg5 {[%clk 0:01:09.6]}
30... Ne4 {[%clk 0:01:16.6]} 31. Bxe7 {[%clk 0:01:05.4]} 31... gxf5 {[%clk
0:01:17.1]} 32. Bh4 {[%clk 0:00:54.9]} 32... Rd1+ {[%clk 0:01:06.9]} 33. Kh2
{[%clk 0:00:52.8]} 33... Kg6 {[%clk 0:01:06]} 34. Bg3 {[%clk 0:00:50.8]} 34...
Rd3 {[%clk 0:01:01.4]} 35. Bf4 {[%clk 0:00:50.5]} 35... Rb3 {[%clk 0:01:01.1]}
36. Be5 {[%clk 0:00:49.4]} 36... h5 {[%clk 0:01:00.9]} 37. Bd4 {[%clk
0:00:48.7]} 37... h4 {[%clk 0:01:01.1]} 38. Rc2 {[%clk 0:00:48]} 38... Rd3
{[%clk 0:01:00.1]} 39. Bf2 {[%clk 0:00:48.3]} 39... Kg5 {[%clk 0:00:51.8]} 40.
b4 {[%clk 0:00:49.3]} 40... Rb3 {[%clk 0:00:50.8]} 41. Bc5 {[%clk 0:00:50.4]}
41... Rb1 {[%clk 0:00:50.7]} 42. Be7+ {[%clk 0:00:48.7]} 42... f6 {[%clk
0:00:52]} 43. Rc8 {[%clk 0:00:42.7]} 43... Ng3 {[%clk 0:00:17.1]} 44. Rg8+
{[%clk 0:00:43.7]} 44... Kh5 {[%clk 0:00:17.8]} 45. Rh8+ {[%clk 0:00:35.5]}
45... Kg5 {[%clk 0:00:18.8]} 46. Rg8+ {[%clk 0:00:28.7]} 46... Kh5 {[%clk
0:00:19.9]} 47. Rh8+ {[%clk 0:00:25.9]} 47... Kg5 {[%clk 0:00:12.9]} 48. Rg8+
{[%clk 0:00:26.7]} 48... Kh5 {[%clk 0:00:09.3]} 49. Rh8+ {[%clk 0:00:27.4]}
49... Kg5 {[%clk 0:00:10.3]} 50. Rg8+ {[%clk 0:00:22.1]} 50... Kh5 {[%clk
0:00:10.6]} 51. Rh8+ {[%clk 0:00:19.4]} 51... Kg5 {[%clk 0:00:11.5]} 1/2-1/2

[Event "*** Titled Tuesday Blitz"]
[Site "Chess.com"]
[Date "2018.11.06"]
[Round "4"]
[White "vovachesss"]
[Black "saraswathii"]
[Result "1-0"]
[WhiteElo "2442"]
[BlackElo "2271"]
[TimeControl "180+2"]
[EndTime "13:54:34 PST"]
[Termination "vovachesss won by checkmate"]

1. Nf3 {[%clk 0:03:01.9]} 1... Nc6 {[%clk 0:03:00.1]} 2. d4 {[%clk 0:03:02.1]}
2... d5 {[%clk 0:03:01.2]} 3. Bf4 {[%clk 0:03:00.7]} 3... Bf5 {[%clk 0:03:01.6]}
4. e3 {[%clk 0:03:01.8]} 4... a6 {[%clk 0:02:55.1]} 5. a3 {[%clk 0:03:01]} 5...
e6 {[%clk 0:02:55.1]} 6. c4 {[%clk 0:03:01.7]} 6... Bd6 {[%clk 0:02:53.7]} 7.
Bxd6 {[%clk 0:03:01.3]} 7... Qxd6 {[%clk 0:02:53.6]} 8. Nc3 {[%clk 0:03:02.4]}
8... Nf6 {[%clk 0:02:52.7]} 9. Bd3 {[%clk 0:03:02.3]} 9... Bxd3 {[%clk
0:02:52.4]} 10. Qxd3 {[%clk 0:03:04.2]} 10... O-O {[%clk 0:02:51.8]} 11. O-O
{[%clk 0:03:02.5]} 11... dxc4 {[%clk 0:02:48.8]} 12. Qxc4 {[%clk 0:03:02.2]}
12... e5 {[%clk 0:02:46.8]} 13. Rad1 {[%clk 0:02:58.9]} 13... exd4 {[%clk
0:02:43.2]} 14. Nxd4 {[%clk 0:02:56.8]} 14... Nxd4 {[%clk 0:02:39.7]} 15. Rxd4
{[%clk 0:02:58.7]} 15... Qb6 {[%clk 0:02:38.4]} 16. b4 {[%clk 0:02:50]} 16...
Rad8 {[%clk 0:02:37.9]} 17. Rfd1 {[%clk 0:02:50.6]} 17... Rxd4 {[%clk
0:02:31.3]} 18. Rxd4 {[%clk 0:02:52.5]} 18... Re8 {[%clk 0:02:29.7]} 19. h3
{[%clk 0:02:52.5]} 19... h6 {[%clk 0:02:25.8]} 20. Kf1 {[%clk 0:02:23.4]} 20...
Rc8 {[%clk 0:02:16.3]} 21. Ke2 {[%clk 0:02:19.9]} 21... Re8 {[%clk 0:01:45.7]}
22. g4 {[%clk 0:02:16.3]} 22... Rc8 {[%clk 0:01:39.6]} 23. h4 {[%clk 0:02:16.7]}
23... Qe6 {[%clk 0:01:37.5]} 24. Qxe6 {[%clk 0:02:13.6]} 24... fxe6 {[%clk
0:01:39.4]} 25. g5 {[%clk 0:02:15.1]} 25... hxg5 {[%clk 0:01:39.1]} 26. hxg5
{[%clk 0:02:17]} 26... Nh7 {[%clk 0:01:40.4]} 27. f4 {[%clk 0:02:15.9]} 27...
Nf8 {[%clk 0:01:39.5]} 28. Ne4 {[%clk 0:02:13.6]} 28... Kf7 {[%clk 0:01:33.7]}
29. Nc5 {[%clk 0:02:10.3]} 29... Rb8 {[%clk 0:01:23.2]} 30. a4 {[%clk
0:01:33.5]} 30... Ke7 {[%clk 0:01:20.8]} 31. b5 {[%clk 0:01:27.3]} 31... axb5
{[%clk 0:01:12.6]} 32. axb5 {[%clk 0:01:29.2]} 32... b6 {[%clk 0:01:13.5]} 33.
Na6 {[%clk 0:01:29.8]} 33... Rc8 {[%clk 0:01:09.4]} 34. Nb4 {[%clk 0:01:29.9]}
34... e5 {[%clk 0:01:05.1]} 35. Nc6+ {[%clk 0:01:26.3]} 35... Ke8 {[%clk
0:00:56.5]} 36. Re4 {[%clk 0:01:17.9]} 36... Nd7 {[%clk 0:00:52.8]} 37. fxe5
{[%clk 0:01:13.7]} 37... Nc5 {[%clk 0:00:48.3]} 38. Rh4 {[%clk 0:00:52]} 38...
Kf7 {[%clk 0:00:39.5]} 39. g6+ {[%clk 0:00:52.9]} 39... Ke6 {[%clk 0:00:38.1]}
40. Rh5 {[%clk 0:00:38.7]} 40... Ne4 {[%clk 0:00:31.1]} 41. Kd3 {[%clk
0:00:32.1]} 41... Nc5+ {[%clk 0:00:27.2]} 42. Kc4 {[%clk 0:00:31.8]} 42... Ra8
{[%clk 0:00:25.5]} 43. Nd4+ {[%clk 0:00:32.5]} 43... Kd7 {[%clk 0:00:22.3]} 44.
Rf5 {[%clk 0:00:33.4]} 44... Ra3 {[%clk 0:00:15.8]} 45. Rf7+ {[%clk 0:00:33.8]}
45... Kc8 {[%clk 0:00:16.8]} 46. Kd5 {[%clk 0:00:20.6]} 46... Rxe3 {[%clk
0:00:18.7]} 47. Kc6 {[%clk 0:00:22]} 47... Kd8 {[%clk 0:00:15.1]} 48. Kd5 {[%clk
0:00:14.5]} 48... Nd7 {[%clk 0:00:07.9]} 49. Nc6+ {[%clk 0:00:15.2]} 49... Kc8
{[%clk 0:00:06.7]} 50. Rxg7 {[%clk 0:00:15.9]} 50... Re1 {[%clk 0:00:04.8]} 51.
Rg8+ {[%clk 0:00:16.3]} 51... Kb7 {[%clk 0:00:04.6]} 52. Ke6 {[%clk 0:00:14.4]}
52... Nc5+ {[%clk 0:00:03.4]} 53. Ke7 {[%clk 0:00:16]} 53... Nd3 {[%clk
0:00:03.6]} 54. Rb8# {[%clk 0:00:16.6]} 1-0

[Event "*** Titled Tuesday Blitz"]
[Site "Chess.com"]
[Date "2018.11.06"]
[Round "4"]
[White "Iyael"]
[Black "Sanan_Sjugirov"]
[Result "1/2-1/2"]
[WhiteElo "2029"]
[BlackElo "2851"]
[TimeControl "180+2"]
[EndTime "13:54:39 PST"]
[Termination "Game drawn by agreement"]

1. e4 {[%clk 0:03:00.2]} 1... c5 {[%clk 0:03:00.9]} 2. c3 {[%clk 0:02:59.7]}
2... Nf6 {[%clk 0:03:00.9]} 3. e5 {[%clk 0:03:00.1]} 3... Nd5 {[%clk 0:03:02.4]}
4. d4 {[%clk 0:03:01.1]} 4... cxd4 {[%clk 0:03:04.3]} 5. Nf3 {[%clk 0:03:02]}
5... d6 {[%clk 0:03:05.5]} 6. Bc4 {[%clk 0:03:01]} 6... dxe5 {[%clk 0:02:53.4]}
7. Nxe5 {[%clk 0:02:53.2]} 7... e6 {[%clk 0:02:53.8]} 8. cxd4 {[%clk 0:02:46.5]}
8... Be7 {[%clk 0:02:50.6]} 9. O-O {[%clk 0:02:45.9]} 9... O-O {[%clk
0:02:51.2]} 10. Nc3 {[%clk 0:02:45.6]} 10... Nxc3 {[%clk 0:02:49.1]} 11. bxc3
{[%clk 0:02:45.9]} 11... Nd7 {[%clk 0:02:49.8]} 12. Re1 {[%clk 0:02:36.8]} 12...
Qc7 {[%clk 0:02:44]} 13. Qd3 {[%clk 0:02:25.5]} 13... Nxe5 {[%clk 0:02:28.2]}
14. Rxe5 {[%clk 0:02:25.5]} 14... g6 {[%clk 0:02:18.8]} 15. Bh6 {[%clk
0:02:13.3]} 15... Re8 {[%clk 0:02:19.7]} 16. Bf4 {[%clk 0:01:49.5]} 16... Bd6
{[%clk 0:02:12.5]} 17. Rc5 {[%clk 0:01:50.1]} 17... Qe7 {[%clk 0:02:09.6]} 18.
Bxd6 {[%clk 0:01:48.5]} 18... Qxd6 {[%clk 0:02:11.5]} 19. Bb5 {[%clk 0:01:42.7]}
19... Rd8 {[%clk 0:02:10.1]} 20. Qf3 {[%clk 0:01:35.6]} 20... Rb8 {[%clk
0:02:03.3]} 21. Re1 {[%clk 0:01:28.3]} 21... Bd7 {[%clk 0:01:41]} 22. Bxd7
{[%clk 0:01:25.4]} 22... Rxd7 {[%clk 0:01:35.5]} 23. h4 {[%clk 0:01:26.2]} 23...
b6 {[%clk 0:01:25.9]} 24. Rce5 {[%clk 0:01:23]} 24... Rc8 {[%clk 0:01:23.8]} 25.
h5 {[%clk 0:01:20.8]} 25... Rdc7 {[%clk 0:01:22.3]} 26. R1e3 {[%clk 0:01:19.3]}
26... Qd8 {[%clk 0:01:17.2]} 27. hxg6 {[%clk 0:00:49.6]} 27... hxg6 {[%clk
0:01:17.6]} 28. Qh3 {[%clk 0:00:45.9]} 28... Kg7 {[%clk 0:01:08.8]} 29. R5e4
{[%clk 0:00:44.7]} 29... Qg5 {[%clk 0:00:24.7]} 30. Rh4 {[%clk 0:00:40]} 30...
Rg8 {[%clk 0:00:22.9]} 31. Kh2 {[%clk 0:00:31]} 31... Qxh4 {[%clk 0:00:19.9]}
32. Qxh4 {[%clk 0:00:30.7]} 32... Rh8 {[%clk 0:00:21.3]} 33. Qxh8+ {[%clk
0:00:28.1]} 33... Kxh8 {[%clk 0:00:23.2]} 34. Kg3 {[%clk 0:00:28.1]} 34... Kg7
{[%clk 0:00:23.4]} 35. Kf4 {[%clk 0:00:29.2]} 35... Rc4 {[%clk 0:00:22.2]} 36.
Ke5 {[%clk 0:00:27.1]} 36... Ra4 {[%clk 0:00:23.2]} 37. Re2 {[%clk 0:00:26.8]}
37... g5 {[%clk 0:00:13.7]} 38. g4 {[%clk 0:00:24.5]} 38... Kg6 {[%clk
0:00:14.4]} 39. Rc2 {[%clk 0:00:22.9]} 39... b5 {[%clk 0:00:12.6]} 40. f3 {[%clk
0:00:19.4]} 40... Rc4 {[%clk 0:00:13.2]} 41. Ke4 {[%clk 0:00:16.9]} 41... Kf6
{[%clk 0:00:12]} 42. f4 {[%clk 0:00:15.4]} 42... gxf4 {[%clk 0:00:11.8]} 43.
Kxf4 {[%clk 0:00:16.4]} 43... b4 {[%clk 0:00:12.7]} 44. Ke4 {[%clk 0:00:12]}
44... bxc3 {[%clk 0:00:13.6]} 45. Kd3 {[%clk 0:00:11.7]} 45... Rc8 {[%clk
0:00:13.4]} 46. Rf2+ {[%clk 0:00:09.6]} 46... Kg5 {[%clk 0:00:14.6]} 47. Kc2
{[%clk 0:00:10.7]} 47... Rc7 {[%clk 0:00:11.5]} 48. Rg2 {[%clk 0:00:11.6]} 48...
Kf4 {[%clk 0:00:11]} 49. g5 {[%clk 0:00:12.2]} 49... Kf3 {[%clk 0:00:12.2]} 50.
Rg1 {[%clk 0:00:13.2]} 50... Ke3 {[%clk 0:00:12.7]} 51. g6 {[%clk 0:00:14.3]}
51... fxg6 {[%clk 0:00:11.6]} 52. Rxg6 {[%clk 0:00:15]} 52... Kxd4 {[%clk
0:00:09.9]} 53. Rxe6 {[%clk 0:00:15.9]} 53... a5 {[%clk 0:00:05.7]} 54. Ra6
{[%clk 0:00:14.8]} 54... Kc4 {[%clk 0:00:05]} 55. Rxa5 {[%clk 0:00:14.6]} 55...
Re7 {[%clk 0:00:04.6]} 56. Ra4+ {[%clk 0:00:15.6]} 56... Kb5 {[%clk 0:00:05.9]}
57. Rg4 {[%clk 0:00:15.9]} 57... Re2+ {[%clk 0:00:07]} 58. Kxc3 {[%clk
0:00:16.7]} 58... Rxa2 {[%clk 0:00:08.6]} 1/2-1/2

[Event "*** Titled Tuesday Blitz"]
[Site "Chess.com"]
[Date "2018.11.06"]
[Round "4"]
[White "AlexTriapishko"]
[Black "FairChess_on_YouTube"]
[Result "1/2-1/2"]
[WhiteElo "2771"]
[BlackElo "2929"]
[TimeControl "180+2"]
[EndTime "13:55:13 PST"]
[Termination "Game drawn - insufficient material"]

1. e4 {[%clk 0:02:55.4]} 1... c5 {[%clk 0:03:00.7]} 2. Nf3 {[%clk 0:02:56.9]}
2... e6 {[%clk 0:03:01.9]} 3. d4 {[%clk 0:02:58.3]} 3... cxd4 {[%clk 0:03:03.7]}
4. Nxd4 {[%clk 0:02:59.9]} 4... Nc6 {[%clk 0:03:05.3]} 5. Nc3 {[%clk 0:03:01.4]}
5... a6 {[%clk 0:03:06]} 6. Qd3 {[%clk 0:03:02.6]} 6... Qc7 {[%clk 0:03:06.1]}
7. Nxc6 {[%clk 0:03:03.2]} 7... bxc6 {[%clk 0:03:06.9]} 8. Qg3 {[%clk
0:03:04.3]} 8... Qxg3 {[%clk 0:03:07.6]} 9. hxg3 {[%clk 0:03:06.2]} 9... Rb8
{[%clk 0:03:08.3]} 10. b3 {[%clk 0:03:01.3]} 10... d5 {[%clk 0:03:06.7]} 11. Bb2
{[%clk 0:02:52]} 11... Nf6 {[%clk 0:03:05.4]} 12. Bd3 {[%clk 0:02:37.7]} 12...
Bc5 {[%clk 0:02:51.2]} 13. f3 {[%clk 0:02:30.2]} 13... Bd4 {[%clk 0:02:43.9]}
14. O-O-O {[%clk 0:02:24.9]} 14... c5 {[%clk 0:02:33.3]} 15. exd5 {[%clk
0:02:00.5]} 15... exd5 {[%clk 0:02:29.5]} 16. g4 {[%clk 0:02:01]} 16... Bb7
{[%clk 0:01:46.6]} 17. Rde1+ {[%clk 0:01:44.2]} 17... Kf8 {[%clk 0:01:38.1]} 18.
g5 {[%clk 0:01:44.7]} 18... Ne8 {[%clk 0:01:21.9]} 19. Na4 {[%clk 0:01:28.5]}
19... Bxb2+ {[%clk 0:01:22.7]} 20. Kxb2 {[%clk 0:01:30.1]} 20... c4 {[%clk
0:01:17.1]} 21. Nc5 {[%clk 0:01:15.9]} 21... Bc8 {[%clk 0:01:16.3]} 22. Bf1
{[%clk 0:00:44.7]} 22... Nc7 {[%clk 0:01:16.2]} 23. Re5 {[%clk 0:00:34.6]} 23...
Rb5 {[%clk 0:00:49.9]} 24. Na4 {[%clk 0:00:33.9]} 24... d4 {[%clk 0:00:49.4]}
25. Re4 {[%clk 0:00:22.8]} 25... c3+ {[%clk 0:00:33.9]} 26. Kc1 {[%clk
0:00:24.1]} 26... Rb4 {[%clk 0:00:31.6]} 27. a3 {[%clk 0:00:23.5]} 27... Rxa4
{[%clk 0:00:31.3]} 28. bxa4 {[%clk 0:00:24.7]} 28... Ne6 {[%clk 0:00:31.8]} 29.
Bc4 {[%clk 0:00:21.6]} 29... Ke7 {[%clk 0:00:28.3]} 30. Bxe6 {[%clk 0:00:20.4]}
30... Bxe6 {[%clk 0:00:30.2]} 31. Rxd4 {[%clk 0:00:22.1]} 31... Rb8 {[%clk
0:00:30.6]} 32. Rb4 {[%clk 0:00:22]} 32... Rc8 {[%clk 0:00:29.5]} 33. Rd1 {[%clk
0:00:22.6]} 33... g6 {[%clk 0:00:27.2]} 34. Rb7+ {[%clk 0:00:22.6]} 34... Kf8
{[%clk 0:00:27.5]} 35. Rb6 {[%clk 0:00:21]} 35... Rc5 {[%clk 0:00:25.6]} 36.
Rxa6 {[%clk 0:00:19]} 36... Rxg5 {[%clk 0:00:26.2]} 37. g4 {[%clk 0:00:17.6]}
37... h5 {[%clk 0:00:24.7]} 38. Ra8+ {[%clk 0:00:18.7]} 38... Kg7 {[%clk
0:00:22.5]} 39. gxh5 {[%clk 0:00:20.1]} 39... gxh5 {[%clk 0:00:24.4]} 40. a5
{[%clk 0:00:18]} 40... h4 {[%clk 0:00:25.8]} 41. a6 {[%clk 0:00:17.6]} 41... Ra5
{[%clk 0:00:26.6]} 42. Rg1+ {[%clk 0:00:12.7]} 42... Kf6 {[%clk 0:00:26.1]} 43.
Kd1 {[%clk 0:00:11.5]} 43... Rxa3 {[%clk 0:00:20.6]} 44. Ke2 {[%clk 0:00:12.2]}
44... Bf5 {[%clk 0:00:18.4]} 45. a7 {[%clk 0:00:11.7]} 45... h3 {[%clk
0:00:19.6]} 46. Ke3 {[%clk 0:00:12.1]} 46... Bxc2 {[%clk 0:00:18.3]} 47. Rh1
{[%clk 0:00:11.8]} 47... Bf5 {[%clk 0:00:18.1]} 48. Kf4 {[%clk 0:00:09.2]} 48...
c2 {[%clk 0:00:17.7]} 49. Rb8 {[%clk 0:00:08.8]} 49... Rxa7 {[%clk 0:00:11.1]}
50. Rb6+ {[%clk 0:00:09.9]} 50... Be6 {[%clk 0:00:12]} 51. Rc6 {[%clk
0:00:11.5]} 51... Ra2 {[%clk 0:00:09]} 52. Kg3 {[%clk 0:00:11.3]} 52... Ke7
{[%clk 0:00:09.9]} 53. Rc1 {[%clk 0:00:11.5]} 53... Bf5 {[%clk 0:00:10.3]} 54.
Kf4 {[%clk 0:00:11.8]} 54... Ra5 {[%clk 0:00:10.3]} 55. Rc7+ {[%clk 0:00:11.2]}
55... Kf6 {[%clk 0:00:10.2]} 56. Rc6+ {[%clk 0:00:12.4]} 56... Ke7 {[%clk
0:00:11.4]} 57. Rc7+ {[%clk 0:00:12.6]} 57... Kf8 {[%clk 0:00:11.5]} 58. Kg3
{[%clk 0:00:12.7]} 58... Rd5 {[%clk 0:00:12.2]} 59. R1xc2 {[%clk 0:00:11.1]}
59... Bxc2 {[%clk 0:00:12.4]} 60. Rxc2 {[%clk 0:00:13]} 60... Rh5 {[%clk
0:00:11.1]} 61. Rh2 {[%clk 0:00:14.1]} 61... Ke7 {[%clk 0:00:11.5]} 62. Rxh3
{[%clk 0:00:15.5]} 62... Rxh3+ {[%clk 0:00:11.5]} 63. Kxh3 {[%clk 0:00:17.4]}
63... Kf6 {[%clk 0:00:11.8]} 64. Kg4 {[%clk 0:00:18.9]} 64... Kg6 {[%clk
0:00:12.3]} 65. f4 {[%clk 0:00:18.6]} 65... Kf6 {[%clk 0:00:11.6]} 66. f5 {[%clk
0:00:16.6]} 66... Ke5 {[%clk 0:00:11.1]} 67. Kg5 {[%clk 0:00:18.1]} 67... Ke4
{[%clk 0:00:11.4]} 68. Kf6 {[%clk 0:00:16.3]} 68... Kf4 {[%clk 0:00:12.3]} 69.
Kxf7 {[%clk 0:00:18]} 69... Kxf5 {[%clk 0:00:14.2]} 1/2-1/2